[Event "Fagernes Chess GM-Swiss 2024"]
[Site "Fagernes"]
[Date "2024.03.28"]
[Round "6.42"]
[White "Joel Paul Ganta"]
[Black "Rasmussen, Casper"]
[Result "1-0"]
[ECO "C42"]
[WhiteElo "1993"]
[BlackElo "2244"]
[Annotator "RC"]
[PlyCount "119"]
[EventDate "2024.03.25"]
[EventType "swiss"]
[EventCountry "NOR"]
[SourceTitle "playchess.com"]
[Source "ChessBase"]
[SourceQuality "1"]
[TimeControl "40/6000+30:2400+30"]

1. e4 {[%emt 0:16:14]} e5 {[%emt 0:00:33]} 2. Nf3 {[%emt 0:00:03]} Nf6 {[%emt 0:00:08]} 3. Nxe5 {[%emt 0:00:03]} d6 {[%emt 0:00:08]} 4. Nf3 {[%emt 0:00:02]} Nxe4 {[%emt 0:00:07]} 5. d4 {[%emt 0:00:03]} d5 {[%emt 0:00:09]} 6. Bd3 {[%emt 0:00:03]} Bd6 {[%emt 0:00:06]} 7. O-O {[%emt 0:00:11]} O-O {[%emt 0:00:09]} 8. c4 {[%emt 0:00:02]} c6 {[%emt 0:00:07]} 9. Nc3 {[%emt 0:00:02]} Nxc3 {[%emt 0:00:35]} 10. bxc3 {[%emt 0:00:41]} dxc4 {[%emt 0:00:10]} 11. Bxc4 {[%emt 0:00:02]} Bf5 {[%emt 0:00:36]} 12. Re1 {[%emt 0:02:45]} Nd7 {[%emt 0:03:58]} 13. Bb3 {[%emt 0:03:26]} Qc7 {[%emt 0:08:18]} 14. h3 {[%emt 0:11:35]} h6 {[%emt 0:04:04]} 15. Nh4 {[%emt 0:00:35]} Bh7 {[%emt 0:00:27]} 16. Qf3 {[%emt 0:01:18]} c5 {[%emt 0:25:37]} 17. Nf5 {[%emt 0:01:04]} Bxf5 {[%emt 0:03:54]} 18. Qxf5 {[%emt 0:00:28]} cxd4 {[%emt 0:02:10]} 19. cxd4 {[%emt 0:02:52]} Bb4 {[%emt 0:09:32]} 20. Bxh6 {[%emt 0:11:03]} Qd6 {[%emt 0:01:01]} 21. Re4 {[%emt 0:30:48]} Qxh6 {[%emt 0:03:19]} 22. Qxd7 {[%emt 0:00:14]} Qc6 {[%emt 0:09:01]} 23. Qxc6 {[%emt 0:11:02]} bxc6 {[%emt 0:02:42]} 24. d5 {[%emt 0:01:15]} Bc3 {[%emt 0:06:07]} 25. Rc1 {[%emt 0:00:05]} cxd5 {[%emt 0:00:19]} 26. Bxd5 {[%emt 0:00:02]} Rac8 {[%emt 0:05:52]} 27. Re7 {[%emt 0:00:10]} a5 {[%emt 0:01:51]} 28. Kf1 {[%emt 0:01:09]} Rc5 {[%emt 0:01:37]} 29. Bb3 {[%emt 0:04:16]} Bb4 {[%emt 0:01:28]} 30. Rxc5 {[%emt 0:01:44]} Bxc5 {[%emt 0:00:02]} 31. Rb7 {[%emt 0:01:38]} g6 {[%emt 0:01:53]} 32. g4 {[%emt 0:00:23]} Kg7 {[%emt 0:02:02]} 33. g5 {[%emt 0:00:02]} Bd6 {[%emt 0:02:12]} 34. Kg2 {[%emt 0:01:24]} Bf4 {[%emt 0:04:48]} 35. h4 {[%emt 0:00:13]} Bd2 {[%emt 0:00:02]} 36. Kh3 {[%emt 0:02:08]} Be1 {[%emt 0:02:51]} 37. Kg2 {[%emt 0:02:06]} Bd2 {[%emt 0:00:08]} 38. a4 {[%emt 0:04:26]} Be1 {[%emt 0:04:48]} 39. Kf3 {[%emt 0:00:23]} Kg8 {[%emt 0:00:38]} 40. Kg2 {[%emt 0:03:36]} Kg7 {[%emt 0:00:27]} 41. Kf1 {[%emt 0:01:12]} Bd2 {[%emt 0:06:27]} 42. f3 {[%emt 0:03:54]} Bb4 {[%emt 0:03:34]} 43. Kg2 {[%emt 0:00:53]} Be1 {[%emt 0:02:14]} 44. Kh3 {[%emt 0:00:17]} Kg8 {[%emt 0:00:16]} 45. Kg4 {[%emt 0:00:33]} Kg7 {[%emt 0:00:24]} 46. f4 {[%emt 0:01:36]} Bf2 {[%emt 0:05:12]} 47. h5 {[%emt 0:01:28]} gxh5+ {[%emt 0:01:58]} 48. Kxh5 {[%emt 0:00:03]} Bd4 {[%emt 0:01:17]} 49. f5 {[%emt 0:01:58]} Bc3 {[%emt 0:02:57]} 50. Kg4 {[%emt 0:01:10]} Bd4 {[%emt 0:01:26]} 51. g6 {[%emt 0:02:30]} Be5 {[%emt 0:03:23]} 52. Bxf7 {[%emt 0:00:12]} Rb8 {[%emt 0:00:22]} 53. Ra7 {[%emt 0:11:18]} Rb4+ {[%emt 0:01:10]} 54. Kh5 {[%emt 0:01:22]} Bd4 {[%emt 0:04:20]} 55. Rd7 {[%emt 0:01:09]} Kf6 {[%emt 0:05:23]} 56. Be6 {[%emt 0:01:16]} Bf2 {[%emt 0:02:00]} 57. Rf7+ {[%emt 0:00:04]} Ke5 {[%emt 0:00:05]} 58. g7 {[%emt 0:00:06]} Rh4+ {[%emt 0:00:41]} 59. Kg6 {[%emt 0:00:49]} Be3 {[%emt 0:01:33]} 60. Rb7 {[%emt 0:00:49]} 1-0

[Event "Fagernes Chess GM-Swiss 2024"]
[Site "Fagernes"]
[Date "2024.03.28"]
[Round "6.43"]
[White "Stai, Sondre"]
[Black "Akshit Kumar J"]
[Result "0-1"]
[ECO "B23"]
[WhiteElo "1842"]
[BlackElo "2172"]
[Annotator "RC"]
[PlyCount "80"]
[EventDate "2024.03.25"]
[EventType "swiss"]
[EventCountry "NOR"]
[SourceTitle "playchess.com"]
[Source "ChessBase"]
[SourceQuality "1"]
[TimeControl "40/6000+30:2400+30"]

1. e4 {[%emt 0:01:07]} c5 {[%emt 0:08:54]} 2. Nc3 {[%emt 0:00:41]} Nc6 {[%emt 0:00:11]} 3. Bb5 {[%emt 0:00:07]} Nd4 {[%emt 0:00:10]} 4. Nf3 {[%emt 0:00:06]} a6 {[%emt 0:00:04]} 5. Bd3 {[%emt 0:00:23]} g6 {[%emt 0:00:13]} 6. Rb1 {[%emt 0:00:26]} Nc6 {[%emt 0:00:17]} 7. a3 {[%emt 0:01:45]} b5 {[%emt 0:00:12]} 8. O-O {[%emt 0:04:55]} Bg7 {[%emt 0:00:50]} 9. Re1 {[%emt 0:00:43]} d6 {[%emt 0:02:21]} 10. h3 {[%emt 0:00:50]} Nf6 {[%emt 0:06:53]} 11. Bf1 {[%emt 0:17:11]} O-O {[%emt 0:03:00]} 12. d3 {[%emt 0:04:06]} Bb7 {[%emt 0:03:36]} 13. g3 {[%emt 0:05:18]} Rc8 {[%emt 0:03:08]} 14. Bg2 {[%emt 0:04:48]} Nd7 {[%emt 0:10:57]} 15. Kh2 {[%emt 0:02:57]} Nd4 {[%emt 0:06:57]} 16. Nh4 {[%emt 0:03:31]} a5 {[%emt 0:12:28]} 17. Ne2 {[%emt 0:03:23]} a4 {[%emt 0:01:26]} 18. f4 {[%emt 0:08:22]} Qb6 {[%emt 0:03:43]} 19. b3 {[%emt 0:09:01]} axb3 {[%emt 0:02:34]} 20. Nxd4 {[%emt 0:09:34]} cxd4 {[%emt 0:01:11]} 21. cxb3 {[%emt 0:02:53]} b4 {[%emt 0:07:08]} 22. a4 {[%emt 0:01:43]} Rc7 {[%emt 0:05:45]} 23. Bd2 {[%emt 0:02:50]} Ba6 {[%emt 0:03:20]} 24. Bf1 {[%emt 0:00:55]} Rfc8 {[%emt 0:01:12]} 25. Rb2 {[%emt 0:04:59]} e5 {[%emt 0:02:51]} 26. f5 {[%emt 0:00:27]} Rc3 {[%emt 0:03:14]} 27. Bxc3 {[%emt 0:06:09]} bxc3 {[%emt 0:00:13]} 28. Ra2 {[%emt 0:00:30]} Nc5 {[%emt 0:00:50]} 29. fxg6 {[%emt 0:07:16]} hxg6 {[%emt 0:00:24]} 30. Qf3 {[%emt 0:01:30]} Qxb3 {[%emt 0:01:42]} 31. Rf2 {[%emt 0:00:58]} c2 {[%emt 0:02:58]} 32. Rc1 {[%emt 0:01:31]} Bxd3 {[%emt 0:01:38]} 33. Nf5 {[%emt 0:03:54]} gxf5 {[%emt 0:01:27]} 34. exf5 {[%emt 0:00:25]} Bxf1 {[%emt 0:02:39]} 35. Qg4 {[%emt 0:00:09]} f6 {[%emt 0:00:35]} 36. h4 {[%emt 0:02:11]} Nd3 {[%emt 0:00:59]} 37. h5 {[%emt 0:00:36]} Nxf2 {[%emt 0:00:22]} 38. Qg6 {[%emt 0:00:09]} Qf3 {[%emt 0:01:37]} 39. Rxf1 {[%emt 0:00:33]} Ng4+ {[%emt 0:00:09]} 40. Kh3 {[%emt 0:00:54]} Qxf1+ {[%emt 0:00:08]} 0-1

[Event "Fagernes Chess GM-Swiss 2024"]
[Site "Fagernes"]
[Date "2024.03.28"]
[Round "6.44"]
[White "Mihajlov, Svetoslav"]
[Black "Lien, Sebastian"]
[Result "1-0"]
[ECO "D36"]
[WhiteElo "2094"]
[BlackElo "1885"]
[Annotator "NA RC"]
[PlyCount "115"]
[EventDate "2024.03.25"]
[EventType "swiss"]
[EventCountry "NOR"]
[SourceTitle "playchess.com"]
[Source "ChessBase"]
[SourceQuality "1"]
[TimeControl "40/6000+30:2400+30"]

1. d4 {[%emt 0:00:03]} d5 {[%emt 0:00:22]} 2. Nf3 {[%emt 0:00:18]} Nf6 {[%emt 0:00:55]} 3. c4 {[%emt 0:00:18]} e6 {[%emt 0:00:08]} 4. cxd5 {[%emt 0:00:31]} exd5 {[%emt 0:00:08]} 5. Bg5 {[%emt 0:00:09]} Be7 {[%emt 0:00:13]} 6. Nc3 {[%emt 0:00:22]} h6 {[%emt 0:00:37]} 7. Bh4 {[%emt 0:00:10]} c6 {[%emt 0:00:47]} 8. Qc2 {[%emt 0:00:10]} O-O {[%emt 0:00:30]} 9. e3 {[%emt 0:00:06]} Re8 {[%emt 0:02:27]} 10. Bd3 {[%emt 0:00:22]} Nbd7 {[%emt 0:02:45]} 11. O-O {[%emt 0:00:16]} Ne4 {[%emt 0:11:35]} 12. Bxe7 {[%emt 0:00:09]} Qxe7 {[%emt 0:00:05]} 13. Rae1 {[%emt 0:08:15]} Ndf6 {[%emt 0:21:09]} 14. Ne5 {[%emt 0:04:11] D36: Queen's Gambit Declined: Exchange Variation: Main line (5 Bg5 c6 6 Qc2).} Nxc3 {[%emt 0:02:33]} 15. bxc3 {[%emt 0:00:12]} c5 {[%emt 0:05:25]} 16. Qb2 {[%emt 0:09:01]} g6 {[%emt 0:17:17]} 17. f3 {[%emt 0:03:07]} (17. Qb1 $14) 17... Qc7 {[%emt 0:05:06]} (17... Be6 $14) 18. e4 {[%emt 0:02:00]} c4 {[%emt 0:03:19]} 19. Bb1 {[%emt 0:04:56]} Be6 {[%emt 0:00:34]} 20. Qd2 {[%emt 0:02:19]} Kg7 {[%emt 0:02:17]} 21. exd5 {[%emt 0:00:15]} Bxd5 {[%emt 0:03:13]} 22. Qc2 $16 {[%emt 0:08:38]} Kh8 {[%emt 0:05:41]} 23. Qd2 {[%emt 0:12:20]} Kg7 {[%emt 0:00:49]} 24. h4 {[%emt 0:02:15]} Rg8 {[%emt 0:05:19]} 25. Qf4 {[%emt 0:07:55]} Nh5 {[%emt 0:03:25]} 26. Qh2 {[%emt 0:00:08]} Nf6 {[%emt 0:10:23]} 27. g4 {[%emt 0:01:45]} Rae8 {[%emt 0:03:12]} 28. Qg3 {[%emt 0:13:09]} Nd7 {[%emt 0:00:42]} 29. f4 {[%emt 0:00:10]} Kh8 {[%emt 0:03:07]} 30. g5 {[%emt 0:02:40]} Nxe5 {[%emt 0:00:38]} 31. fxe5 {[%emt 0:00:24]} h5 {[%emt 0:00:43]} 32. Rf6 {[%emt 0:00:24]} Re6 {[%emt 0:00:32]} 33. Ref1 {[%emt 0:01:02]} Rxf6 {[%emt 0:00:13]} 34. gxf6 {[%emt 0:08:04]} Qd7 {[%emt 0:00:33]} 35. Rf4 {[%emt 0:00:06]} Qa4 {[%emt 0:00:21]} 36. Rf1 {[%emt 0:01:54]} Qd7 {[%emt 0:00:38]} 37. Kh2 {[%emt 0:01:59]} Qg4 {[%emt 0:00:16]} 38. Qxg4 {[%emt 0:00:05]} hxg4 {[%emt 0:00:04]} 39. Kg3 {[%emt 0:02:46]} Be6 {[%emt 0:00:42]} 40. Be4 {[%emt 0:00:16]} b5 {[%emt 0:00:18]} 41. h5 {[%emt 0:44:30]} Bf5 {[%emt 0:04:49]} 42. Bxf5 {[%emt 0:00:00]} gxf5 {[%emt 0:00:22]} 43. Rxf5 {[%emt 0:00:00]} Rd8 {[%emt 0:01:45]} 44. e6 {[%emt 0:00:00]} fxe6 {[%emt 0:02:40]} 45. Rxb5 {[%emt 0:00:00]} Rf8 {[%emt 0:00:27]} 46. Kxg4 {[%emt 0:00:00]} Rxf6 {[%emt 0:00:07]} 47. Rb8+ {[%emt 0:00:00]} Kg7 {[%emt 0:00:22]} 48. Rb7+ {[%emt 0:00:00]} Kh6 {[%emt 0:00:16]} 49. Rxa7 {[%emt 0:00:00]} Rf2 {[%emt 0:01:18]} 50. Ra6 {[%emt 0:00:00]} Rg2+ {[%emt 0:00:34]} 51. Kf4 {[%emt 0:00:00]} Kxh5 {[%emt 0:00:34]} 52. Rxe6 {[%emt 0:00:00]} Rc2 {[%emt 0:00:46]} 53. Re3 {[%emt 0:00:00]} Rxa2 {[%emt 0:00:19]} 54. Re5+ {[%emt 0:00:00]} Kg6 {[%emt 0:00:11]} 55. Rc5 {[%emt 0:00:00]} Ra4 {[%emt 0:00:39]} 56. Ke5 {[%emt 0:00:00]} Kf7 {[%emt 0:00:23]} 57. Rc7+ {[%emt 0:00:00]} Ke8 {[%emt 0:00:15]} 58. Kd5 {[%emt 0:00:00]} 1-0

[Event "Fagernes Chess GM-Swiss 2024"]
[Site "Fagernes"]
[Date "2024.03.28"]
[Round "6.45"]
[White "Gasland, Lukas Dominik"]
[Black "Havik, Victor"]
[Result "1/2-1/2"]
[ECO "D60"]
[WhiteElo "1985"]
[BlackElo "2078"]
[Annotator "NA RC"]
[PlyCount "107"]
[EventDate "2024.03.25"]
[EventType "swiss"]
[EventCountry "NOR"]
[SourceTitle "playchess.com"]
[Source "ChessBase"]
[SourceQuality "1"]
[TimeControl "40/6000+30:2400+30"]

1. d4 {[%emt 0:01:15] Ramirez Alvarez,Alejandro} Nf6 {[%emt 0:00:19]} 2. c4 {[%emt 0:00:03]} e6 {[%emt 0:00:04]} 3. Nf3 {[%emt 0:00:09]} d5 {[%emt 0:00:08]} 4. Nc3 {[%emt 0:00:11]} Nbd7 {[%emt 0:00:07]} 5. Bg5 {[%emt 0:00:50]} h6 {[%emt 0:00:17]} 6. Bh4 {[%emt 0:00:05]} Be7 {[%emt 0:00:04]} 7. e3 {[%emt 0:00:39]} O-O {[%emt 0:00:05]} 8. Bd3 {[%emt 0:01:29]} dxc4 {[%emt 0:02:05]} 9. Bxc4 {[%emt 0:00:06]} a6 {[%emt 0:00:07]} 10. a4 {[%emt 0:01:00] The main line 10.a4 scores better than 10.0-0. D60: Queen's Gambit Declined: Classical: Unusual White 7th moves.} b6 {[%emt 0:01:59]} 11. O-O {[%emt 0:02:58]} Bb7 {[%emt 0:00:28]} 12. Qe2 {[%emt 0:00:17]} c5 {[%emt 0:20:35]} 13. Rfd1 {[%emt 0:02:32]} Qe8 {[%emt 0:05:17]} 14. Rac1 {[%emt 0:04:52]} Bd6 {[%emt 0:08:14]} 15. Rd2 $146 {[%emt 0:14:09]} ({Predecessor:} 15. d5 e5 16. Bg3 Nh5 17. Ne4 Bb8 18. Bh4 f5 19. d6+ Kh8 20. Be7 fxe4 21. Nh4 {1-0 Girya,O (2450)-Kosteniuk,A (2527) Khanty-Mansiysk FIDE GP (Women) 2014 (7)}) 15... cxd4 {[%emt 0:03:30]} 16. Nxd4 {[%emt 0:02:41]} Bb4 {[%emt 0:04:56]} 17. Bd3 {[%emt 0:08:43]} Nd5 {[%emt 0:06:46]} (17... Qe7 $11 {might be stronger.}) 18. Rdc2 {[%emt 0:09:32]} Nxc3 {[%emt 0:03:38]} 19. bxc3 {[%emt 0:00:12]} Be7 {[%emt 0:07:20]} 20. Bxe7 {[%emt 0:03:59]} Qxe7 {[%emt 0:01:44]} 21. Rb2 {[%emt 0:01:28]} Rfc8 $11 {[%emt 0:01:25]} 22. c4 {[%emt 0:02:28]} Qa3 {[%emt 0:17:44]} 23. Rcb1 {[%emt 0:09:15]} Nc5 {[%emt 0:04:30]} 24. Bc2 {[%emt 0:02:50]} Nxa4 {[%emt 0:01:33]} 25. Ra2 {[%emt 0:01:15]} Qxa2 {[%emt 0:02:19]} 26. Bh7+ {[%emt 0:00:08]} Kxh7 {[%emt 0:00:09]} 27. Qxa2 {[%emt 0:00:06]} Nc3 {[%emt 0:00:07]} 28. Qc2+ {[%emt 0:04:46]} Be4 {[%emt 0:00:25]} 29. Qxc3 {[%emt 0:00:18]} Bxb1 {[%emt 0:00:02]} 30. Qb3 {[%emt 0:01:01]} Bg6 {[%emt 0:01:17]} 31. h4 {[%emt 0:01:20]} e5 {[%emt 0:01:28]} 32. Nf3 {[%emt 0:02:31]} f6 {[%emt 0:00:29]} 33. g4 {[%emt 0:02:00]} a5 {[%emt 0:00:29]} 34. g5 {[%emt 0:02:38]} a4 {[%emt 0:05:31]} 35. Qa3 {[%emt 0:00:31]} Rc5 {[%emt 0:03:41]} 36. gxf6 {[%emt 0:01:25]} gxf6 {[%emt 0:00:02]} 37. Kh2 {[%emt 0:03:36]} h5 {[%emt 0:01:10]} 38. Nd2 {[%emt 0:02:46]} Ra7 {[%emt 0:02:59]} 39. Qb4 {[%emt 0:01:48]} Rc6 {[%emt 0:01:46]} 40. Qb5 {[%emt 0:03:54]} Rd6 {[%emt 0:00:15]} 41. Qb4 {[%emt 0:43:08]} Rxd2 {[%emt 0:44:50]} 42. Qxd2 {[%emt 0:00:10]} a3 {[%emt 0:00:01]} 43. Qa2 {[%emt 0:02:29]} Kh8 {[%emt 0:00:00]} 44. f4 {[%emt 0:00:00]} exf4 {[%emt 0:00:00]} 45. exf4 {[%emt 0:00:00]} Bf7 {[%emt 0:00:00]} 46. Qa1 {[%emt 0:00:00]} a2 {[%emt 0:00:00]} 47. Qxf6+ {[%emt 0:00:00]} Kh7 {[%emt 0:00:00]} 48. Qa1 {[%emt 0:00:00]} Bxc4 {[%emt 0:00:00]} 49. f5 {[%emt 0:00:00]} b5 {[%emt 0:00:00]} 50. f6 {[%emt 0:00:00]} b4 {[%emt 0:01:40]} 51. Qd1 {[%emt 0:00:00]} a1=Q {[%emt 0:03:47]} 52. Qxh5+ {[%emt 0:00:00]} Kg8 {[%emt 0:00:00]} 53. Qe8+ {[%emt 0:00:00]} Kh7 {[%emt 0:00:04]} 54. Qh5+ {[%emt 0:00:00]} 1/2-1/2

[Event "Fagernes Chess GM-Swiss 2024"]
[Site "Fagernes"]
[Date "2024.03.28"]
[Round "6.46"]
[White "Okuno Okuno, Rion"]
[Black "Evenshaug, Amadeus Hestvik"]
[Result "1/2-1/2"]
[ECO "B42"]
[WhiteElo "1981"]
[BlackElo "2035"]
[Annotator "NA RC"]
[PlyCount "92"]
[EventDate "2024.03.25"]
[EventType "swiss"]
[EventCountry "NOR"]
[SourceTitle "playchess.com"]
[Source "ChessBase"]
[SourceQuality "1"]
[TimeControl "40/6000+30:2400+30"]

1. e4 {[%emt 0:00:16]} c5 {[%emt 0:00:22]} 2. Nf3 {[%emt 0:00:06]} e6 {[%emt 0:00:25]} 3. d4 {[%emt 0:00:13]} cxd4 {[%emt 0:00:10]} 4. Nxd4 {[%emt 0:00:05]} a6 {[%emt 0:00:05]} 5. Bd3 {[%emt 0:00:05]} Qc7 {[%emt 0:00:17]} 6. O-O {[%emt 0:00:54]} Nf6 {[%emt 0:00:14]} 7. c4 {[%emt 0:05:09]} d6 {[%emt 0:00:33]} 8. Nc3 {[%emt 0:00:53]} b6 {[%emt 0:00:14]} 9. Qe2 {[%emt 0:08:50]} Be7 {[%emt 0:01:27]} 10. f4 {[%emt 0:01:54] The main line 10.f4 scores better than 10.Be3.} Nbd7 {[%emt 0:00:40]} 11. Nb3 {[%emt 0:03:43] B42: Sicilian: Kan Variation: 5 Bd3.} Bb7 {[%emt 0:00:26]} 12. Be3 {[%emt 0:00:32]} Rc8 {[%emt 0:05:59]} 13. Rac1 {[%emt 0:01:06]} O-O {[%emt 0:01:35]} 14. g4 {[%emt 0:01:26]} Nc5 {[%emt 0:05:38]} 15. Nxc5 {[%emt 0:02:05]} bxc5 {[%emt 0:00:55]} (15... dxc5 $14 16. e5 Nd7) 16. g5 {[%emt 0:13:37]} Nd7 {[%emt 0:03:14]} 17. Qg4 $146 {[%emt 0:16:16]} ({Predecessor:} 17. f5 Rfe8 18. g6 hxg6 19. fxg6 fxg6 20. Qg4 Bf6 21. Bf4 Bd4+ 22. Kh1 Nf6 23. Qxg6 {0-1 Nilsson,W (1976)-Nukin,T (2171) Wch Seniors 65 28th 2018 (3)}) 17... Rfe8 {[%emt 0:17:28]} 18. Rce1 {[%emt 0:13:28]} Bf8 {[%emt 0:06:28]} 19. Rf3 {[%emt 0:01:07]} (19. h4 $14) 19... g6 {[%emt 0:04:51]} 20. Rh3 $11 {[%emt 0:02:41]} f5 {[%emt 0:10:03]} 21. Qh4 {[%emt 0:14:10]} Nb6 {[%emt 0:01:12]} 22. Bf2 {[%emt 0:05:53]} Qf7 {[%emt 0:12:04]} 23. Rhe3 {[%emt 0:04:19]} Bg7 {[%emt 0:02:50]} 24. e5 {[%emt 0:00:36]} d5 {[%emt 0:00:41]} 25. Rh3 {[%emt 0:01:37]} Bf8 {[%emt 0:00:30]} 26. b3 {[%emt 0:01:46]} Rc7 {[%emt 0:03:50]} 27. Bf1 {[%emt 0:01:07]} Qd7 {[%emt 0:02:56]} 28. Qg3 {[%emt 0:02:35]} Rd8 {[%emt 0:02:27]} 29. Rd1 {[%emt 0:00:05]} Qc8 {[%emt 0:00:36]} 30. cxd5 {[%emt 0:03:44]} Nxd5 {[%emt 0:00:05]} 31. Bc4 {[%emt 0:00:41]} Rcd7 {[%emt 0:03:15]} 32. Nxd5 {[%emt 0:00:50]} Bxd5 {[%emt 0:00:10]} 33. Bxd5 {[%emt 0:00:38]} Rxd5 {[%emt 0:00:08]} 34. Rxd5 {[%emt 0:00:23]} Rxd5 {[%emt 0:00:05]} 35. Qc3 {[%emt 0:00:28]} Rd1+ {[%emt 0:01:07]} 36. Kg2 {[%emt 0:00:04]} Qc6+ {[%emt 0:00:11]} 37. Rf3 {[%emt 0:02:10]} Qd5 {[%emt 0:14:11]} 38. Kg3 {[%emt 0:00:33]} Rd2 {[%emt 0:00:43]} 39. a3 {[%emt 0:01:31]} Be7 {[%emt 0:02:45]} 40. a4 {[%emt 0:01:25]} Kf7 {[%emt 0:01:13]} 41. Be1 {[%emt 0:13:28]} Rd1 {[%emt 0:03:24]} 42. Bf2 {[%emt 0:00:32]} Ke8 {[%emt 0:10:00]} 43. Qc2 {[%emt 0:02:12]} Kd7 {[%emt 0:02:42]} 44. Qe2 {[%emt 0:00:26]} Rb1 {[%emt 0:03:39]} 45. Qc2 {[%emt 0:00:52]} Rd1 {[%emt 0:04:03]} 46. Qe2 {[%emt 0:00:39]} Rb1 {[%emt 0:01:11]} 1/2-1/2

[Event "Fagernes Chess GM-Swiss 2024"]
[Site "Fagernes"]
[Date "2024.03.28"]
[Round "6.47"]
[White "Lilliehook, Victor"]
[Black "Elsness, Fredrik Valstad"]
[Result "0-1"]
[ECO "B14"]
[WhiteElo "2060"]
[BlackElo "1873"]
[Annotator "NA RC"]
[PlyCount "112"]
[EventDate "2024.03.25"]
[EventType "swiss"]
[EventCountry "NOR"]
[SourceTitle "playchess.com"]
[Source "ChessBase"]
[SourceQuality "1"]
[TimeControl "40/6000+30:2400+30"]

1. e4 {[%emt 0:00:00]} c6 {[%emt 0:05:46]} 2. d4 {[%emt 0:00:07]} d5 {[%emt 0:00:01]} 3. exd5 {[%emt 0:00:08]} cxd5 {[%emt 0:00:03]} 4. c4 {[%emt 0:00:01]} Nf6 {[%emt 0:00:13]} 5. Nc3 {[%emt 0:00:03]} e6 {[%emt 0:00:08]} 6. c5 {[%emt 0:00:08]} Be7 {[%emt 0:00:13]} 7. Bb5+ {[%emt 0:00:05]} Bd7 {[%emt 0:00:18]} 8. Bxd7+ {[%emt 0:00:22]} Qxd7 {[%emt 0:00:09]} 9. b4 {[%emt 0:01:06]} b6 {[%emt 0:04:23]} 10. Rb1 {[%emt 0:06:49]} a5 {[%emt 0:03:22]} 11. Na4 {[%emt 0:08:05]} Bd8 {[%emt 0:06:30]} 12. b5 {[%emt 0:08:33]} ({And not} 12. Nxb6 Bxb6 13. cxb6 axb4 $11) ({Not} 12. cxb6 axb4 13. Rxb4 Ne4 $11) 12... O-O {[%emt 0:04:22]} 13. c6 {[%emt 0:08:54]} (13. Nxb6 Bxb6 14. cxb6 Rc8) 13... Qd6 {[%emt 0:01:58]} 14. Qf3 {[%emt 0:10:14]} ({White should try} 14. Nf3 $18) 14... Nxc6 {[%emt 0:21:51]} 15. bxc6 {[%emt 0:04:56]} Qxc6 {[%emt 0:00:07]} 16. Qb3 {[%emt 0:03:16]} Be7 {[%emt 0:03:02]} 17. Nf3 {[%emt 0:08:49]} b5 $16 {[%emt 0:03:45]} 18. Nc5 {[%emt 0:12:06]} Bxc5 {[%emt 0:10:05]} 19. dxc5 {[%emt 0:00:32]} b4 {[%emt 0:01:01]} 20. Be3 {[%emt 0:02:50]} Ne4 {[%emt 0:01:38]} 21. O-O {[%emt 0:04:14]} Nc3 {[%emt 0:02:29]} 22. Rb2 {[%emt 0:03:02]} Qc7 {[%emt 0:05:04]} 23. Bd4 {[%emt 0:02:52]} Nb5 {[%emt 0:00:59]} 24. Qe3 {[%emt 0:04:18]} Nxd4 {[%emt 0:02:32]} 25. Qxd4 {[%emt 0:00:09]} f6 {[%emt 0:01:30]} 26. Re1 {[%emt 0:02:48]} Qc6 {[%emt 0:01:47]} 27. Rd2 {[%emt 0:05:38]} Rad8 {[%emt 0:03:00]} 28. Nh4 {[%emt 0:02:27]} e5 {[%emt 0:02:28]} 29. Nf5 {[%emt 0:01:58]} Rd7 {[%emt 0:03:06]} 30. Qg4 {[%emt 0:03:00]} Rfd8 {[%emt 0:02:17]} 31. Rc1 {[%emt 0:03:37]} d4 {[%emt 0:05:01]} 32. h4 {[%emt 0:01:19]} Kh8 {[%emt 0:02:49]} 33. h5 {[%emt 0:00:34]} a4 {[%emt 0:04:07]} 34. Qg3 {[%emt 0:01:28]} g6 {[%emt 0:05:55]} 35. hxg6 {[%emt 0:00:30]} hxg6 {[%emt 0:00:02]} 36. Qxg6 {[%emt 0:00:44]} Rg8 {[%emt 0:00:21]} 37. Qh6+ {[%emt 0:02:42]} Rh7 {[%emt 0:00:09]} 38. Qxh7+ {[%emt 0:00:21]} Kxh7 {[%emt 0:00:06]} 39. f3 {[%emt 0:00:22]} Qxf3 {[%emt 0:00:41]} 40. Rf2 {[%emt 0:00:22]} Qb7 {[%emt 0:02:14]} 41. c6 {[%emt 0:40:36]} Qc7 {[%emt 0:40:40]} 42. Rf3 {[%emt 0:00:00]} Rb8 {[%emt 0:00:00]} 43. Rg3 {[%emt 0:00:00]} e4 {[%emt 0:00:00]} 44. Rc5 {[%emt 0:00:00]} b3 {[%emt 0:00:00]} 45. Nd6 {[%emt 0:00:00]} f5 {[%emt 0:00:00]} 46. Rh3+ {[%emt 0:00:00]} Kg8 {[%emt 0:00:00]} 47. Rg3+ {[%emt 0:00:00]} Kf8 {[%emt 0:00:00]} 48. Rxf5+ {[%emt 0:00:00]} Ke7 {[%emt 0:00:00]} 49. Rg7+ {[%emt 0:00:56]} Kxd6 {[%emt 0:00:00]} 50. Rf6+ {[%emt 0:00:26]} Ke5 {[%emt 0:00:00]} 51. Rxc7 {[%emt 0:00:04]} bxa2 {[%emt 0:00:00]} 52. Rf1 {[%emt 0:00:31]} Rb1 {[%emt 0:00:00]} 53. Re7+ {[%emt 0:02:13]} Kd6 {[%emt 0:00:00]} 54. c7 {[%emt 0:00:42]} Rxf1+ {[%emt 0:00:00]} 55. Kh2 {[%emt 0:01:13]} Rh1+ {[%emt 0:00:00]} 56. Kg3 {[%emt 0:00:05]} Rh8 {[%emt 0:00:00]} 0-1